Workbook

Sheet Sheet1
A1: U26 bycatch mortality, million net pounds, all sectors | G1: O26 bycatch mortality, million net pounds, all sectors | M1: All bycatch mortality, million net pounds, all sectors
A2: Year | B2: 4A | C2: 4B | D2: 4CDE | E2: Total4ABCDE | G2: Year | H2: 4A | I2: 4B | J2: 4CDE | K2: Total4ABCDE | M2: Year | N2: 4A | O2: 4B | P2: 4CDE | Q2: Total4ABCDE
A3: 1990 | B3: 0.97 | C3: 0.07 | D3: 1.97 | E3: =SUM(B3:D3) -> 3.01 | G3: 1990 | H3: 1.03 | I3: 0.87 | J3: 3.68 | K3: =SUM(H3:J3) -> 5.58 | M3: 1990 | N3: =B3+H3 -> 2 | O3: =C3+I3 -> 0.94 | P3: 5.65 | Q3: =SUM(N3:P3) -> 8.59
A4: 1991 | B4: 1.48 | C4: 0.05 | D4: 3.63 | E4: =SUM(B4:D4) -> 5.16 | G4: 1991 | H4: 0.85 | I4: 1.05 | J4: 2.98 | K4: =SUM(H4:J4) -> 4.88 | M4: 1991 | N4: =B4+H4 -> 2.33 | O4: =C4+I4 -> 1.1 | P4: =D4+J4 -> 6.61 | Q4: =SUM(N4:P4) -> 10.04
A5: 1992 | B5: 1.52 | C5: 0.1 | D5: 3.97 | E5: 5.59 | G5: 1992 | H5: 0.97 | I5: 1.07 | J5: 3.09 | K5: 5.13 | M5: 1992 | N5: =B5+H5 -> 2.49 | O5: 1.17 | P5: 7.06 | Q5: 10.72
A6: 1993 | B6: 1.47 | C6: 0.15 | D6: 2.73 | E6: 4.35 | G6: 1993 | H6: 0.33 | I6: 0.7 | J6: 2.39 | K6: 3.42 | M6: 1993 | N6: 1.8 | O6: =C6+I6 -> 0.85 | P6: =D6+J6 -> 5.12 | Q6: 7.77
A7: 1994 | B7: 0.83 | C7: 0.09 | D7: 2.54 | E7: 3.46 | G7: 1994 | H7: 1.36 | I7: 0.95 | J7: 3.7 | K7: 6.01 | M7: 1994 | N7: 2.19 | O7: 1.04 | P7: 6.24 | Q7: 9.47
A8: 1995 | B8: 0.99 | C8: 0.12 | D8: 1.62 | E8: 2.73 | G8: 1995 | H8: 1.03 | I8: 0.83 | J8: 4.13 | K8: 5.99 | M8: 1995 | N8: 2.02 | O8: 0.95 | P8: 5.75 | Q8: 8.72
A9: 1996 | B9: 0.68 | C9: 0.05 | D9: 1.14 | E9: 1.87 | G9: 1996 | H9: 1.29 | I9: 0.88 | J9: 4.47 | K9: 6.64 | M9: 1996 | N9: 1.97 | O9: 0.93 | P9: 5.61 | Q9: 8.51
A10: 1997 | B10: 0.67 | C10: 0.07 | D10: 0.89 | E10: 1.63 | G10: 1997 | H10: 1.16 | I10: 0.8 | J10: 4.3 | K10: 6.26 | M10: 1997 | N10: 1.83 | O10: 0.87 | P10: 5.19 | Q10: 7.89
A11: 1998 | B11: 0.43 | C11: 0.08 | D11: 1.1 | E11: 1.61 | G11: 1998 | H11: 1.37 | I11: 0.77 | J11: 3.98 | K11: 6.12 | M11: 1998 | N11: 1.8 | O11: 0.85 | P11: 5.08 | Q11: 7.73
A12: 1999 | B12: 0.75 | C12: 0.06 | D12: 1.54 | E12: 2.35 | G12: 1999 | H12: 1.03 | I12: 0.78 | J12: 3.52 | K12: 5.33 | M12: 1999 | N12: 1.78 | O12: 0.84 | P12: 5.06 | Q12: 7.68
A13: 2000 | B13: 0.66 | C13: 0.05 | D13: 1.6 | E13: 2.31 | G13: 2000 | H13: 1.07 | I13: 0.77 | J13: 3.3 | K13: 5.14 | M13: 2000 | N13: 1.73 | O13: 0.82 | P13: 4.9 | Q13: 7.45
A14: 2001 | B14: 0.45 | C14: 0.06 | D14: 1.06 | E14: 1.57 | G14: 2001 | H14: 1.2 | I14: 0.72 | J14: 3.63 | K14: 5.55 | M14: 2001 | N14: 1.65 | O14: 0.78 | P14: 4.69 | Q14: 7.12
A15: 2002 | B15: 0.89 | C15: 0.05 | D15: 1.26 | E15: 2.2 | G15: 2002 | H15: 0.8 | I15: 0.75 | J15: 3.53 | K15: 5.08 | M15: 2002 | N15: 1.69 | O15: 0.8 | P15: 4.79 | Q15: 7.28
A16: 2003 | B16: 0.76 | C16: 0.03 | D16: 1.57 | E16: 2.36 | G16: 2003 | H16: 0.82 | I16: 0.72 | J16: 2.92 | K16: 4.46 | M16: 2003 | N16: 1.58 | O16: 0.75 | P16: 4.49 | Q16: 6.82
A17: 2004 | B17: 0.75 | C17: 0.03 | D17: 1.55 | E17: 2.33 | G17: 2004 | H17: 0.81 | I17: 0.71 | J17: 2.88 | K17: 4.4 | M17: 2004 | N17: 1.56 | O17: 0.74 | P17: 4.43 | Q17: 6.73
A18: 2005 | B18: 0.86 | C18: 0.04 | D18: 1.77 | E18: 2.67 | G18: 2005 | H18: 0.92 | I18: 0.81 | J18: 3.29 | K18: 5.02 | M18: 2005 | N18: 1.78 | O18: 0.85 | P18: 5.06 | Q18: 7.69
A19: 2006 | B19: 0.75 | C19: 0.24 | D19: 1.92 | E19: 2.91 | G19: 2006 | H19: 0.99 | I19: 0.58 | J19: 3.02 | K19: 4.59 | M19: 2006 | N19: 1.74 | O19: 0.82 | P19: 4.94 | Q19: 7.5
A20: 2007 | B20: 0.68 | C20: 0.14 | D20: 1.87 | E20: 2.69 | G20: 2007 | H20: 0.91 | I20: 0.34 | J20: 2.94 | K20: 4.19 | M20: 2007 | N20: 1.59 | O20: 0.48 | P20: 4.81 | Q20: 6.88
A21: 2008 | B21: 0.53 | C21: 0.11 | D21: 1.75 | E21: 2.39 | G21: 2008 | H21: 0.7 | I21: 0.26 | J21: 2.76 | K21: 3.72 | M21: 2008 | N21: 1.23 | O21: 0.37 | P21: 4.51 | Q21: 6.11
A22: 2009 | B22: 0.67 | C22: 0.14 | D22: 1.56 | E22: 2.37 | G22: 2009 | H22: 0.89 | I22: 0.32 | J22: 2.46 | K22: 3.67 | M22: 2009 | N22: 1.56 | O22: 0.46 | P22: 4.02 | Q22: 6.04
A23: 2010 | B23: 0.45 | C23: 0.14 | D23: 1.63 | E23: 2.22 | G23: 2010 | H23: 0.6 | I23: 0.34 | J23: 2.56 | K23: 3.5 | M23: 2010 | N23: 1.05 | O23: 0.48 | P23: 4.19 | Q23: 5.72
A24: 2011 | B24: 0.42 | C24: 0.14 | D24: 1.18 | E24: 1.74 | G24: 2011 | H24: 0.55 | I24: 0.34 | J24: 1.85 | K24: 2.74 | M24: 2011 | N24: 0.97 | O24: 0.48 | P24: 3.03 | Q24: 4.48
A25: 2012 | B25: 0.63 | C25: 0.08 | D25: 1.66 | E25: 2.37 | G25: 2012 | H25: 0.84 | I25: 0.18 | J25: 2.61 | K25: 3.63 | M25: 2012 | N25: 1.47 | O25: 0.26 | P25: 4.27 | Q25: 6
A26: 2013 | B26: 0.38 | C26: 0.02 | D26: 1.81 | E26: 2.21 | G26: 2013 | H26: 0.5 | I26: 0.12 | J26: 3.17 | K26: 3.79 | M26: 2013 | N26: 0.88 | O26: 0.14 | P26: 4.98 | Q26: 6
A27: 2014 | B27: 0.23 | C27: 0.02 | D27: 1.6 | E27: 1.85 | G27: 2014 | H27: 0.57 | I27: 0.11 | J27: 3.17 | K27: 3.85 | M27: 2014 | N27: 0.8 | O27: 0.13 | P27: 4.77 | Q27: 5.7
A28: 2015 | B28: 0.26 | C28: 0.01 | D28: 1.34 | E28: 1.61 | G28: 2015 | H28: 0.38 | I28: 0.21 | J28: 2.09 | K28: 2.68 | M28: 2015 | N28: 0.64 | O28: 0.22 | P28: 3.43 | Q28: 4.29
A29: 2016 | B29: 0.16 | C29: 0.01 | D29: 0.93 | E29: 1.1 | G29: 2016 | H29: 0.41 | I29: 0.14 | J29: 2.32 | K29: 2.87 | M29: 2016 | N29: 0.57 | O29: 0.15 | P29: 3.25 | Q29: 3.97
A30: 2017 | B30: 0.14 | C30: 0.01 | D30: 1.03 | E30: 1.18 | G30: 2017 | H30: 0.26 | I30: 0.2 | J30: 1.72 | K30: 2.18 | M30: 2017 | N30: 0.4 | O30: 0.21 | P30: 2.75 | Q30: 3.36
A33: percentage U26 bycatch mortality (net pounds), all sectors | G33: percentage O26 bycatch mortality (net pounds), all sectors
A34: Year | B34: 4A | C34: 4B | D34: 4CDE | E34: Total4ABCDE | G34: Year | H34: 4A | I34: 4B | J34: 4CDE | K34: Total4ABCDE
A35: 1990 | B35: =B3/N3 -> 49% | C35: =C3/O3 -> 7% | D35: 35% | E35: 35% | G35: 1990 | H35: =H3/N3 -> 52% | I35: =I3/O3 -> 93% | J35: 65% | K35: 65% | N35: SOURCE: IPHC
A36: 1991 | B36: =B4/N4 -> 64% | C36: =C4/O4 -> 5% | D36: =D4/P4 -> 55% | E36: =E4/Q4 -> 51% | G36: 1991 | H36: =H4/N4 -> 36% | I36: =I4/O4 -> 95% | J36: =J4/P4 -> 45% | K36: 49%
A37: 1992 | B37: 61% | C37: 9% | D37: 56% | E37: 52% | G37: 1992 | H37: 39% | I37: 91% | J37: 44% | K37: 48%
A38: 1993 | B38: 82% | C38: 18% | D38: 53% | E38: 56% | G38: 1993 | H38: 18% | I38: 82% | J38: 47% | K38: 44%
A39: 1994 | B39: 38% | C39: 9% | D39: 41% | E39: 37% | G39: 1994 | H39: 62% | I39: 91% | J39: 59% | K39: 63%
A40: 1995 | B40: 49% | C40: 13% | D40: 28% | E40: 31% | G40: 1995 | H40: 51% | I40: 87% | J40: 72% | K40: 69%
A41: 1996 | B41: 35% | C41: 5% | D41: 20% | E41: 22% | G41: 1996 | H41: 65% | I41: 95% | J41: 80% | K41: 78%
A42: 1997 | B42: 37% | C42: 8% | D42: 17% | E42: 21% | G42: 1997 | H42: 63% | I42: 92% | J42: 83% | K42: 79%
A43: 1998 | B43: 24% | C43: 9% | D43: 22% | E43: 21% | G43: 1998 | H43: 76% | I43: 91% | J43: 78% | K43: 79%
A44: 1999 | B44: 42% | C44: 7% | D44: 30% | E44: 31% | G44: 1999 | H44: 58% | I44: 93% | J44: 70% | K44: 69%
A45: 2000 | B45: 38% | C45: 6% | D45: 33% | E45: 31% | G45: 2000 | H45: 62% | I45: 94% | J45: 67% | K45: 69%
A46: 2001 | B46: 27% | C46: 8% | D46: 23% | E46: 22% | G46: 2001 | H46: 73% | I46: 92% | J46: 77% | K46: 78%
A47: 2002 | B47: 53% | C47: 6% | D47: 26% | E47: 30% | G47: 2002 | H47: 47% | I47: 94% | J47: 74% | K47: 70%
A48: 2003 | B48: 48% | C48: 4% | D48: 35% | E48: 35% | G48: 2003 | H48: 52% | I48: 96% | J48: 65% | K48: 65%
A49: 2004 | B49: 48% | C49: 4% | D49: 35% | E49: 35% | G49: 2004 | H49: 52% | I49: 96% | J49: 65% | K49: 65%
A50: 2005 | B50: 48% | C50: 5% | D50: 35% | E50: 35% | G50: 2005 | H50: 52% | I50: 95% | J50: 65% | K50: 65%
A51: 2006 | B51: 43% | C51: 29% | D51: 39% | E51: 39% | G51: 2006 | H51: 57% | I51: 71% | J51: 61% | K51: 61%
A52: 2007 | B52: 43% | C52: 29% | D52: 39% | E52: 39% | G52: 2007 | H52: 57% | I52: 71% | J52: 61% | K52: 61%
A53: 2008 | B53: 43% | C53: 30% | D53: 39% | E53: 39% | G53: 2008 | H53: 57% | I53: 70% | J53: 61% | K53: 61%
A54: 2009 | B54: 43% | C54: 30% | D54: 39% | E54: 39% | G54: 2009 | H54: 57% | I54: 70% | J54: 61% | K54: 61%
A55: 2010 | B55: 43% | C55: 29% | D55: 39% | E55: 39% | G55: 2010 | H55: 57% | I55: 71% | J55: 61% | K55: 61%
A56: 2011 | B56: 43% | C56: 29% | D56: 39% | E56: 39% | G56: 2011 | H56: 57% | I56: 71% | J56: 61% | K56: 61%
A57: 2012 | B57: 43% | C57: 31% | D57: 39% | E57: 40% | G57: 2012 | H57: 57% | I57: 69% | J57: 61% | K57: 61%
A58: 2013 | B58: 43% | C58: 14% | D58: 36% | E58: 37% | G58: 2013 | H58: 57% | I58: 86% | J58: 64% | K58: 63%
A59: 2014 | B59: 29% | C59: 15% | D59: 34% | E59: 32% | G59: 2014 | H59: 71% | I59: 85% | J59: 66% | K59: 68%
A60: 2015 | B60: 41% | C60: 5% | D60: 39% | E60: 38% | G60: 2015 | H60: 59% | I60: 95% | J60: 61% | K60: 62%
A61: 2016 | B61: 28% | C61: 7% | D61: 29% | E61: 28% | G61: 2016 | H61: 72% | I61: 93% | J61: 71% | K61: 72%
A62: 2017 | B62: 35% | C62: 5% | D62: 37% | E62: 35% | G62: 2017 | H62: 65% | I62: 95% | J62: 63% | K62: 65%
